[Event "15th Arad Open 2022"]
[Site "Arad"]
[Date "2022.08.09"]
[Round "3.16"]
[White "Iuga, Ioan-Alexandru"]
[Black "Padurean, Daniel-Cristian"]
[Result "0-1"]
[ECO "C56"]
[WhiteElo "1848"]
[BlackElo "2126"]
[Annotator "RC"]
[PlyCount "86"]
[EventDate "2022.08.08"]
[EventType "swiss"]
[EventCountry "ROU"]
[SourceTitle "playchess.com"]
[Source "ChessBase"]
[SourceQuality "1"]
[TimeControl "5400+30"]

1. e4 {[%emt 0:00:01]} e5 {[%emt 0:00:08]} 2. Nf3 {[%emt 0:00:04]} Nc6 {[%emt 0:00:04]} 3. Bc4 {[%emt 0:00:05]} Nf6 {[%emt 0:00:07]} 4. d4 {[%emt 0:00:05]} exd4 {[%emt 0:00:18]} 5. e5 {[%emt 0:00:11]} d5 {[%emt 0:00:05]} 6. Bb5 {[%emt 0:00:05]} Ne4 {[%emt 0:00:10]} 7. Nxd4 {[%emt 0:00:08]} Bc5 {[%emt 0:11:39]} 8. Be3 {[%emt 0:00:05]} Bd7 {[%emt 0:02:21]} 9. Bxc6 {[%emt 0:00:15]} bxc6 {[%emt 0:00:16]} 10. Nd2 {[%emt 0:00:38]} Nxd2 {[%emt 0:00:38]} 11. Qxd2 {[%emt 0:00:08]} O-O {[%emt 0:01:45]} 12. O-O {[%emt 0:00:20]} Bb6 {[%emt 0:07:34]} 13. Bg5 {[%emt 0:00:08]} Qc8 {[%emt 0:03:54]} 14. a4 {[%emt 0:13:47]} c5 {[%emt 0:09:09]} 15. Nf3 {[%emt 0:16:01]} c6 {[%emt 0:00:21]} 16. Bf6 {[%emt 0:13:40]} Bf5 {[%emt 0:21:53]} 17. a5 {[%emt 0:12:45]} Bd8 {[%emt 0:01:13]} 18. Qg5 {[%emt 0:06:32]} Bg6 {[%emt 0:00:26]} 19. Bxd8 {[%emt 0:01:37]} Rxd8 {[%emt 0:01:15]} 20. Nh4 {[%emt 0:13:44]} Rb8 {[%emt 0:03:51]} 21. Nxg6 {[%emt 0:03:18]} hxg6 {[%emt 0:00:18]} 22. b3 {[%emt 0:05:03]} Qf5 {[%emt 0:08:00]} 23. Qxf5 {[%emt 0:00:29]} gxf5 {[%emt 0:00:06]} 24. Rfd1 {[%emt 0:01:48]} Re8 {[%emt 0:01:04]} 25. Re1 {[%emt 0:01:28]} Rb4 {[%emt 0:00:26]} 26. f3 {[%emt 0:02:03]} c4 {[%emt 0:02:14]} 27. bxc4 {[%emt 0:00:20]} Rxc4 {[%emt 0:00:05]} 28. Ra2 {[%emt 0:00:39]} Rb8 {[%emt 0:01:03]} 29. Kf2 {[%emt 0:01:19]} Kf8 {[%emt 0:00:52]} 30. e6 {[%emt 0:02:17]} f6 {[%emt 0:01:34]} 31. Ke2 {[%emt 0:03:06]} Ke7 {[%emt 0:00:11]} 32. Kd2 {[%emt 0:00:26]} a6 {[%emt 0:02:09]} 33. Ra3 {[%emt 0:02:26]} Rb5 {[%emt 0:00:17]} 34. g3 {[%emt 0:01:07]} Rcc5 {[%emt 0:03:31]} 35. Rea1 {[%emt 0:00:02]} Rb2 {[%emt 0:00:44]} 36. Rc1 {[%emt 0:00:09]} Kxe6 {[%emt 0:01:47]} 37. Re3+ {[%emt 0:01:13]} Kf7 {[%emt 0:00:05]} 38. Rc3 {[%emt 0:00:06]} Rxc3 {[%emt 0:00:30]} 39. Kxc3 {[%emt 0:00:01]} Rb5 {[%emt 0:00:30]} 40. Ra1 {[%emt 0:00:00]} Ke6 {[%emt 0:00:00]} 41. Kd3 {[%emt 0:00:00]} Kd6 {[%emt 0:00:00]} 42. Ra2 {[%emt 0:00:00]} c5 {[%emt 0:00:00]} 43. c4 {[%emt 0:00:00]} Rb3+ {[%emt 0:00:00]} 0-1

[Event "15th Arad Open 2022"]
[Site "Arad"]
[Date "2022.08.09"]
[Round "3.17"]
[White "Veneteanu, Mihai"]
[Black "Dinca, Ovidiu"]
[Result "1/2-1/2"]
[ECO "D15"]
[WhiteElo "2025"]
[BlackElo "1831"]
[Annotator "RC"]
[PlyCount "74"]
[EventDate "2022.08.08"]
[EventType "swiss"]
[EventCountry "ROU"]
[SourceTitle "playchess.com"]
[Source "ChessBase"]
[SourceQuality "1"]
[TimeControl "5400+30"]

1. c4 {[%emt 0:00:03]} c6 {[%emt 0:00:17]} 2. Nf3 {[%emt 0:01:09]} d5 {[%emt 0:00:04]} 3. d4 {[%emt 0:00:34]} Nf6 {[%emt 0:00:08]} 4. Nc3 {[%emt 0:00:11]} a6 {[%emt 0:00:03]} 5. cxd5 {[%emt 0:05:51]} cxd5 {[%emt 0:00:06]} 6. Bg5 {[%emt 0:00:20]} Ne4 {[%emt 0:01:03]} 7. Bf4 {[%emt 0:01:02]} Nc6 {[%emt 0:02:45]} 8. Qb3 {[%emt 0:01:10]} Nxc3 {[%emt 0:00:45]} 9. bxc3 {[%emt 0:00:11]} e6 {[%emt 0:01:18]} 10. e3 {[%emt 0:00:08]} Bd6 {[%emt 0:00:36]} 11. Bd3 {[%emt 0:01:45]} O-O {[%emt 0:02:34]} 12. O-O {[%emt 0:01:25]} Qc7 {[%emt 0:03:42]} 13. Bxd6 {[%emt 0:01:55]} Qxd6 {[%emt 0:00:05]} 14. e4 {[%emt 0:00:26]} dxe4 {[%emt 0:01:46]} 15. Bxe4 {[%emt 0:00:02]} Bd7 {[%emt 0:06:59]} 16. a4 {[%emt 0:04:29]} Rab8 {[%emt 0:01:47]} 17. a5 {[%emt 0:02:05]} Rfc8 {[%emt 0:02:34]} 18. Rfb1 {[%emt 0:07:20]} Qc7 {[%emt 0:02:29]} 19. Qa2 {[%emt 0:19:20]} h6 {[%emt 0:18:40]} 20. c4 {[%emt 0:08:23]} Ne7 {[%emt 0:04:28]} 21. Rc1 {[%emt 0:04:03]} Bc6 {[%emt 0:02:05]} 22. Qe2 {[%emt 0:04:51]} Bxe4 {[%emt 0:00:48]} 23. Qxe4 {[%emt 0:00:02]} Ng6 {[%emt 0:04:55]} 24. g3 {[%emt 0:02:29]} Rd8 {[%emt 0:05:48]} 25. Kg2 {[%emt 0:12:43]} Ne7 {[%emt 0:00:21]} 26. Rab1 {[%emt 0:01:47]} Nf5 {[%emt 0:03:57]} 27. d5 {[%emt 0:03:54]} Nd6 {[%emt 0:00:57]} 28. Qe1 {[%emt 0:02:14]} exd5 {[%emt 0:01:30]} 29. cxd5 {[%emt 0:00:08]} Qd7 {[%emt 0:00:43]} 30. Rd1 {[%emt 0:07:52]} Rbc8 {[%emt 0:02:09]} 31. Rb6 {[%emt 0:02:29]} Rc5 {[%emt 0:17:08]} 32. Qb4 {[%emt 0:01:52]} Rb5 {[%emt 0:03:10]} 33. Rxb5 {[%emt 0:02:20]} Qxb5 {[%emt 0:00:06]} 34. Qc3 {[%emt 0:02:03]} Qc4 {[%emt 0:01:14]} 35. Qe5 {[%emt 0:00:28]} Qe4 {[%emt 0:00:40]} 36. Qc3 {[%emt 0:00:55]} Qc4 {[%emt 0:01:16]} 37. Qe5 {[%emt 0:00:01]} Qe4 {[%emt 0:10:04]} 1/2-1/2

[Event "15th Arad Open 2022"]
[Site "Arad"]
[Date "2022.08.09"]
[Round "3.18"]
[White "Deac, David"]
[Black "Zubac, Marius"]
[Result "1/2-1/2"]
[ECO "B06"]
[WhiteElo "1829"]
[BlackElo "2025"]
[Annotator "NA RC"]
[PlyCount "106"]
[EventDate "2022.08.08"]
[EventType "swiss"]
[EventCountry "ROU"]
[SourceTitle "playchess.com"]
[Source "ChessBase"]
[SourceQuality "1"]
[TimeControl "5400+30"]

1. e4 {[%emt 0:00:02]} g6 {[%emt 0:00:23]} 2. d4 {[%emt 0:00:30]} Bg7 {[%emt 0:00:30]} 3. Nc3 {[%emt 0:00:30]} d6 {[%emt 0:00:30]} 4. Be3 {[%emt 0:00:30]} a6 {[%emt 0:00:30]} 5. Qd2 {[%emt 0:00:30]} b5 {[%emt 0:00:30]} 6. O-O-O {[%emt 0:00:30]} Bb7 {[%emt 0:00:30]} 7. f3 {[%emt 0:00:30]} Nd7 {[%emt 0:00:30]} 8. a3 {[%emt 0:00:30]} Rc8 {[%emt 0:00:30]} 9. Kb1 {[%emt 0:00:30]} c5 {[%emt 0:00:30]} 10. h4 {[%emt 0:00:30]} h6 {[%emt 0:00:30]} 11. Nge2 {[%emt 0:00:30]} b4 {[%emt 0:00:30]} 12. axb4 {[%emt 0:00:30]} cxb4 {[%emt 0:00:30]} 13. Na2 {[%emt 0:00:30]} a5 {[%emt 0:00:30]} 14. h5 {[%emt 0:00:30]} g5 {[%emt 0:00:30]} 15. Ng3 {[%emt 0:00:30]} e6 {[%emt 0:00:30]} 16. Bb5 {[%emt 0:00:30]} Ne7 {[%emt 0:00:30]} 17. f4 {[%emt 0:00:30]} gxf4 {[%emt 0:00:30]} 18. Bxf4 {[%emt 0:00:30]} Qc7 {[%emt 0:00:30]} 19. c3 {[%emt 0:00:30]} b3 {[%emt 0:00:30]} 20. Nc1 {[%emt 0:00:30]} Kf8 {[%emt 0:00:30]} 21. Bxd7 {[%emt 0:00:30]} Qxd7 {[%emt 0:00:30]} 22. Nxb3 {[%emt 0:00:30]} Qb5 {[%emt 0:00:30]} 23. Nc1 {[%emt 0:00:30]} Rc6 {[%emt 0:00:30]} 24. Nd3 {[%emt 0:00:30]} Kg8 {[%emt 0:00:30]} 25. e5 {[%emt 0:00:30]} Nd5 {[%emt 0:00:30]} 26. Ne2 {[%emt 0:00:30]} Nxf4 {[%emt 0:00:30]} 27. Qxf4 {[%emt 0:00:30]} dxe5 {[%emt 0:00:30]} 28. Nxe5 {[%emt 0:00:30]} Bxe5 {[%emt 0:00:30]} 29. dxe5 {[%emt 0:00:30]} Rc7 {[%emt 0:00:30]} 30. Rd8+ {[%emt 0:00:30]} Kh7 {[%emt 0:00:30]} 31. Rxh8+ {[%emt 0:00:30]} Kxh8 {[%emt 0:00:30]} 32. Qxh6+ {[%emt 0:00:30]} Kg8 {[%emt 0:00:30]} 33. Qe3 {[%emt 0:00:30]} Kh7 {[%emt 0:00:30]} 34. Nd4 {[%emt 0:00:30]} Qd5 {[%emt 0:00:30]} 35. Nf3 {[%emt 0:00:30]} Qe4+ {[%emt 0:00:30]} 36. Qxe4+ {[%emt 0:00:30]} Bxe4+ {[%emt 0:00:30]} 37. Kc1 {[%emt 0:00:30]} Kh6 {[%emt 0:00:30]} 38. Rh4 {[%emt 0:00:30]} Bxf3 {[%emt 0:00:30]} 39. gxf3 {[%emt 0:00:30]} Kg5 {[%emt 0:00:30]} 40. Rg4+ {[%emt 0:00:30]} Kxh5 {[%emt 0:00:30]} 41. Kd2 {[%emt 0:00:30]} Rc5 {[%emt 0:00:30]} 42. Rf4 {[%emt 0:00:30]} Rxe5 {[%emt 0:00:30]} 43. Rxf7 {[%emt 0:00:30]} Rb5 {[%emt 0:00:30]} 44. Kc2 {[%emt 0:00:30]} Kg6 {[%emt 0:00:30]} 45. Rf8 {[%emt 0:00:30]} Kg7 {[%emt 0:00:30]} 46. Rf4 {[%emt 0:00:30]} e5 {[%emt 0:00:30]} 47. Ra4 {[%emt 0:00:30]} Kf6 {[%emt 0:00:30]} 48. b4 {[%emt 0:00:30]} axb4 {[%emt 0:00:30]} 49. Rxb4 {[%emt 0:00:30]} Rc5 {[%emt 0:00:30]} 50. f4 {[%emt 0:00:30]} Kf5 {[%emt 0:00:30]} 51. fxe5 {[%emt 0:00:30]} Kxe5 {[%emt 0:00:30]} 52. Rh4 {[%emt 0:00:30]} Kd6 {[%emt 0:00:30]} 53. c4 {[%emt 0:00:30]} Rg5 {[%emt 0:00:30]} 1/2-1/2

[Event "15th Arad Open 2022"]
[Site "Arad"]
[Date "2022.08.09"]
[Round "3.19"]
[White "Ambru, Dan-Calin"]
[Black "Iacoban, Anatolie"]
[Result "1-0"]
[ECO "E48"]
[WhiteElo "2001"]
[BlackElo "1821"]
[Annotator "TA"]
[PlyCount "79"]
[EventDate "2022.08.08"]
[EventType "swiss"]
[EventCountry "ROU"]
[SourceTitle "playchess.com"]
[Source "ChessBase"]
[SourceQuality "1"]
[TimeControl "5400+30"]

{[%evp 14,79,0,-18,39,50,47,45,95,83,115,93,118,102,116,81,97,92,124,136,139,133,118,128,133,140,185,179,185,179,193,152,147,147,147,154,143,104,108,111,123,122,123,102,103,103,105,93,98,92,91,73,137,132,157,111,237,237,251,252,423,411,582,548,638,622,590,568]} 1. d4 {[%emt 0:08:11]} Nf6 {[%emt 0:00:17]} 2. c4 {[%emt 0:00:08]} e6 {[%emt 0:00:39]} 3. Nc3 {[%emt 0:00:06]} Bb4 {[%emt 0:00:10]} 4. e3 {[%emt 0:00:08]} O-O {[%emt 0:01:15]} 5. Bd3 {[%emt 0:00:08]} d5 {[%emt 0:02:09]} 6. Nge2 {[%emt 0:00:50]} c5 {[%emt 0:01:02]} 7. a3 {[%emt 0:00:16]} dxc4 {[%emt 0:07:17]} 8. Bxc4 {[%emt 0:00:08]} Ba5 {[%emt 0:00:40] E48: Nimzo-Indian: Rubinstein: 5 Bd3 d5 including 6 Ne2, but excluding 6 a3.} (8... Bxc3+ $11 9. bxc3 (9. Nxc3 cxd4 10. exd4 Nc6 $11) 9... Qc7) 9. dxc5 $14 {[%emt 0:01:38]} Qxd1+ {[%emt 0:00:49]} 10. Kxd1 {[%emt 0:00:04] [#]} Nbd7 $146 {[%emt 0:02:48]} (10... Bd8 $14) ({Predecessor:} 10... Ng4 11. Ke1 Ne5 12. Ba2 Nd3+ 13. Kf1 Rd8 14. b4 Bc7 15. f4 b6 16. Nb5 Na6 {0-1 (71) Stalmach,R (2296)-Najer,E (2648) Tornelo INT 2021}) 11. b4 $16 {[%emt 0:01:50]} Bc7 {[%emt 0:00:08]} 12. Nd4 {[%emt 0:03:15]} Ne5 {[%emt 0:02:53]} 13. Be2 {[%emt 0:00:55]} Neg4 {[%emt 0:01:39]} 14. Bxg4 {[%emt 0:02:04]} Nxg4 {[%emt 0:00:08]} 15. Ke2 {[%emt 0:00:13]} e5 {[%emt 0:07:12]} 16. Ndb5 {[%emt 0:02:19]} Bb8 {[%emt 0:00:05]} 17. f3 {[%emt 0:04:35]} Nf6 {[%emt 0:00:56]} 18. Rd1 {[%emt 0:05:27]} Be6 {[%emt 0:20:46]} 19. e4 {[%emt 0:05:18] White is more active.} a6 {[%emt 0:05:55]} 20. Nd6 {[%emt 0:00:37]} Bxd6 {[%emt 0:00:10]} 21. Rxd6 {[%emt 0:03:44]} Rfd8 {[%emt 0:00:05]} 22. Rxd8+ {[%emt 0:03:15]} Rxd8 {[%emt 0:00:03]} 23. Bg5 {[%emt 0:00:30]} Bc4+ {[%emt 0:00:51]} 24. Kf2 {[%emt 0:00:06] Black must now prevent Bxf6.} Rd3 {[%emt 0:05:45]} 25. Rd1 {[%emt 0:01:01]} Rxd1 {[%emt 0:00:27]} 26. Nxd1 {[%emt 0:00:08][%mdl 4096] [#] Endgame aiming for Bxf6. KBN-KBN} Nd7 {[%emt 0:00:54]} 27. Ne3 {[%emt 0:08:36]} Bb5 {[%emt 0:02:15]} 28. Nd5 {[%emt 0:00:13]} f6 {[%emt 0:02:00]} 29. Be3 {[%emt 0:00:59]} Kf7 {[%emt 0:00:18]} 30. Nc3 {[%emt 0:00:06]} Bc4 {[%emt 0:01:13]} 31. a4 {[%emt 0:00:30]} Ke6 {[%emt 0:01:02]} 32. Ke1 {[%emt 0:03:39]} Nb8 {[%emt 0:01:10]} ({Black should play} 32... g6) 33. b5 {[%emt 0:00:19][%cal Bb4b5,Bb5c6][%mdl 32]} Kd7 {[%emt 0:02:56] Prevents c6+.} 34. Kd2 {[%emt 0:01:07]} (34. f4 $142) 34... Ke6 {[%emt 0:06:55] [#] This costs Black the game.} (34... h5 $16 35. f4 Kc8) 35. c6 $1 $18 {[%emt 0:06:34]} bxc6 {[%emt 0:05:30]} 36. Ba7 {[%emt 0:00:17]} Nd7 $2 {[%emt 0:01:45]} (36... cxb5 {is a better defense.} 37. Bxb8 b4) 37. bxc6 {[%emt 0:03:27]} Nf8 {[%emt 0:00:04]} (37... Kd6 $142 38. cxd7 Kxd7) 38. Nd5 {[%emt 0:00:22] And now Kc3 would win. White is clearly winning.} Bb3 {[%emt 0:05:42]} 39. Bc5 {[%emt 0:02:08]} Ng6 {[%emt 0:01:03]} 40. Nb6 {[%emt 0:00:00] Weighted Error Value: White=0.10 (very precise) /Black=0.34} 1-0

[Event "15th Arad Open 2022"]
[Site "Arad"]
[Date "2022.08.09"]
[Round "3.20"]
[White "Cretu, Sorin-Alexandru"]
[Black "Anghel, Iulian-Mihai"]
[Result "0-1"]
[ECO "C50"]
[WhiteElo "1798"]
[BlackElo "2015"]
[Annotator "NA RC"]
[PlyCount "42"]
[EventDate "2022.08.08"]
[EventType "swiss"]
[EventCountry "ROU"]
[SourceTitle "playchess.com"]
[Source "ChessBase"]
[SourceQuality "1"]
[TimeControl "5400+30"]

1. e4 {[%emt 0:09:35]} e5 {[%emt 0:00:09]} 2. Nf3 {[%emt 0:00:11]} Nc6 {[%emt 0:00:08]} 3. Bc4 {[%emt 0:00:20]} Bc5 {[%emt 0:00:07]} 4. O-O {[%emt 0:00:11]} Nf6 {[%emt 0:00:11]} 5. d3 {[%emt 0:00:18]} a6 {[%emt 0:01:04]} 6. a4 {[%emt 0:00:32]} Ba7 {[%emt 0:00:59]} 7. Re1 {[%emt 0:00:21]} d6 {[%emt 0:00:47]} 8. c3 {[%emt 0:00:21]} h6 {[%emt 0:00:53]} 9. b4 {[%emt 0:01:21]} O-O {[%emt 0:02:10]} 10. Be3 {[%emt 0:01:05]} Bxe3 {[%emt 0:01:07]} 11. fxe3 {[%emt 0:00:39]} d5 {[%emt 0:05:20]} 12. exd5 {[%emt 0:01:13]} Nxd5 {[%emt 0:00:06]} 13. e4 {[%emt 0:01:28]} Nf4 {[%emt 0:03:27]} 14. d4 {[%emt 0:01:25]} exd4 {[%emt 0:01:11]} 15. cxd4 {[%emt 0:00:49]} Bg4 {[%emt 0:02:26]} 16. d5 {[%emt 0:01:44]} Ne5 {[%emt 0:03:19]} 17. Be2 {[%emt 0:00:35]} Qf6 {[%emt 0:05:24]} 18. Ra3 {[%emt 0:01:42]} Qb6+ {[%emt 0:07:25]} 19. Kh1 {[%emt 0:00:50]} Qf2 {[%emt 0:12:42]} 20. Bf1 {[%emt 0:00:31]} Nh3 {[%emt 0:02:54]} 21. Be2 {[%emt 0:12:34]} Qg1+ {[%emt 0:00:17]} 0-1

[Event "15th Arad Open 2022"]
[Site "Arad"]
[Date "2022.08.10"]
[Round "4.1"]
[White "Manolache, Marius"]
[Black "Stanciu, Alexandru-Ovidiu"]
[Result "0-1"]
[ECO "D35"]
[WhiteElo "2469"]
[BlackElo "2326"]
[Annotator "TA"]
[PlyCount "126"]
[EventDate "2022.08.08"]
[EventType "swiss"]
[EventCountry "ROU"]
[SourceTitle "playchess.com"]
[Source "ChessBase"]
[SourceQuality "1"]
[TimeControl "5400+30"]

{[%evp 11,126,0,0,0,2,-1,34,18,20,8,26,0,26,16,20,-15,-17,-15,-16,-8,-9,-16,0,0,0,0,0,0,0,0,7,-1,-13,-51,0,0,0,0,0,-36,-38,-40,-41,-56,-21,-58,-40,-89,-70,-110,-111,-109,-100,-170,-68,-74,-31,-54,-62,-55,-57,-66,-32,-125,-119,-122,-126,-213,-194,-266,-247,-338,-347,-340,-339,-318,-309,-416,-387,-459,-432,-771,-791,-1010,-960,-1153,-738,-1151,-1131,-1095,-1085,-5339,-5255,-3354,-3009,-29970,-29971,-29975,-29976,-29976,-29977,-29977,-29978,-29978,-29979,-29979,-29977,-29979,-29978,-29977,-29977,-29977,-29978,-29978,-29977,-29976,-29974]} 1. d4 {[%emt 0:00:05]} d5 {[%emt 0:02:48]} 2. c4 {[%emt 0:00:10]} e6 {[%emt 0:00:13]} 3. Nf3 {[%emt 0:00:22]} Nf6 {[%emt 0:02:25]} 4. Nc3 {[%emt 0:00:18]} Be7 {[%emt 0:02:13]} 5. cxd5 {[%emt 0:03:51]} exd5 {[%emt 0:00:49]} 6. Bf4 {[%emt 0:00:39]} c6 {[%emt 0:02:33]} 7. h3 {[%emt 0:03:42] D35: Queen's Gambit Declined: Exchange Variation.} Bf5 {[%emt 0:17:05]} 8. g4 {[%emt 0:03:06][%cal Bg2g4,Bg4g5][%mdl 32]} Be6 {[%emt 0:06:37] [#]} 9. Qb3 $146 {[%emt 0:07:04] White is slightly better.} ({Predecessor:} 9. e3 Nbd7 10. Qc2 Nf8 11. O-O-O Ng6 12. Bh2 Ne4 13. Bd3 Nxc3 14. Qxc3 Bd6 15. Ng5 {1-0 (36) Shamkovich,L-Ageichenko,G Moscow 1971}) 9... Qb6 {[%emt 0:11:23]} 10. e3 {[%emt 0:07:55]} Nbd7 {[%emt 0:01:56]} 11. Nd2 {[%emt 0:05:43]} h5 {[%emt 0:08:10]} 12. g5 {[%emt 0:02:01]} Nh7 {[%emt 0:00:42][%cal Bf6h7,Bh7f8,Bf8e6][%mdl 32]} 13. Rg1 {[%emt 0:02:49]} Nhf8 {[%emt 0:01:27]} 14. h4 {[%emt 0:10:36]} Bf5 {[%emt 0:04:59] Against Qc2} 15. Bg3 {[%emt 0:02:57]} Ne6 {[%emt 0:05:08]} 16. Be2 {[%emt 0:02:39]} a5 {[%emt 0:09:40]} 17. Qxb6 {[%emt 0:00:38]} Nxb6 {[%emt 0:00:07]} 18. Rc1 {[%emt 0:03:48]} Nd7 {[%emt 0:06:56]} 19. a3 {[%emt 0:13:03]} Bg6 {[%emt 0:03:01]} 20. Bh2 {[%emt 0:01:36]} O-O {[%emt 0:00:52]} 21. Bf3 {[%emt 0:03:25]} Kh7 {[%emt 0:01:22]} 22. Ne2 {[%emt 0:02:50]} f6 {[%emt 0:00:49]} (22... Nb6 $15) 23. Nf4 $11 {[%emt 0:01:51]} Nxf4 {[%emt 0:00:17]} 24. Bxf4 {[%emt 0:00:11]} Rae8 {[%emt 0:02:32]} 25. Ke2 {[%emt 0:02:20]} ({Much weaker is} 25. gxf6 Bxf6 26. Bd6 Bxd4 27. Bxf8 Nxf8 $17) 25... fxg5 {[%emt 0:02:28]} 26. Bxg5 {[%emt 0:00:04]} Bd6 {[%emt 0:00:20]} 27. Rg2 {[%emt 0:02:04]} Bf7 {[%emt 0:03:41][%cal Bg6f7,Bf7e6,Be6f5][%mdl 32]} 28. Rcg1 {[%emt 0:00:30]} g6 {[%emt 0:00:37]} 29. Kd1 {[%emt 0:02:34]} (29. e4 $15 {was preferrable.}) 29... Be6 $17 {[%emt 0:00:25]} 30. Rh1 {[%emt 0:06:54] Against Bh3} Rf7 {[%emt 0:00:58]} 31. Be2 {[%emt 0:00:19] [#]} Bf5 $1 {[%emt 0:00:31] Inhibits Bd3.} 32. Re1 {[%emt 0:01:11]} (32. f3 $17) 32... b5 {[%emt 0:02:14]} ({Worse is} 32... Bh3 33. Rgg1 $17) (32... Nf8 $19 33. Rh1 Ne6) 33. f3 {[%emt 0:04:09][%cal Oe3e4]} b4 {[%emt 0:00:18] Black is much more active.} 34. e4 {[%emt 0:02:35]} Bh3 {[%emt 0:00:14]} 35. Rgg1 {[%emt 0:00:08]} bxa3 {[%emt 0:00:10]} 36. bxa3 {[%emt 0:00:13]} Bxa3 {[%emt 0:01:04]} 37. Rg3 {[%emt 0:01:36] Black converts the advantage convincingly.} ({White should play} 37. f4 $1 $15 Be6 38. f5 gxf5 39. e5) 37... Be6 $36 {[%emt 0:00:13][%mdl 2048] Black is really pushing.} 38. Bd3 {[%emt 0:00:22] [#]} Nf8 $1 {[%emt 0:01:02]} 39. exd5 {[%emt 0:00:56]} (39. Bc2 $17) 39... cxd5 $19 {[%emt 0:00:31]} 40. f4 {[%emt 0:00:00]} (40. Bc2 {was called for.}) 40... Bg4+ {[%emt 0:00:00]} 41. Be2 {[%emt 0:00:00]} Bb2 {[%emt 0:00:00] ...Rc7 is the strong threat. Dancing on a razor blade.} 42. Bxg4 {[%emt 0:00:00]} Rxe1+ {[%emt 0:00:00]} 43. Kxe1 {[%emt 0:00:00] Hoping for Bf3.} hxg4 {[%emt 0:00:00]} 44. Rxg4 {[%emt 0:00:00]} a4 {[%emt 0:00:00][%cal Ba5a4,Ba4a3,Ba3a2][%mdl 32] White must now prevent ...a3.} 45. Kd1 {[%emt 0:00:00]} Rc7 {[%emt 0:00:00]} 46. h5 {[%emt 0:00:00]} (46. Nb1 $142 Ne6 47. Bf6) 46... gxh5 {[%emt 0:00:00]} 47. Rh4 {[%emt 0:00:00]} Kg6 {[%emt 0:00:12]} 48. Bd8 {[%emt 0:00:00]} Rc1+ {[%emt 0:00:19]} 49. Ke2 {[%emt 0:00:00]} a3 {[%emt 0:01:03] Threatens to win with ...a2.} 50. f5+ {[%emt 0:00:00]} Kf7 {[%emt 0:00:30] ( -> ...a2)} 51. Rh3 {[%emt 0:00:00]} a2 {[%emt 0:00:45]} 52. Nb3 {[%emt 0:00:00]} Rc8 {[%emt 0:00:17]} 53. Bg5 {[%emt 0:00:00]} Rb8 {[%emt 0:00:08] Black mates.} 54. Na1 {[%emt 0:00:00]} Bxa1 {[%emt 0:01:21]} 55. Ra3 {[%emt 0:00:00]} Bxd4 {[%emt 0:01:33]} 56. Rxa2 {[%emt 0:00:00]} Rb2+ {[%emt 0:00:14]} 57. Rxb2 {[%emt 0:00:00]} Bxb2 {[%emt 0:00:03]} 58. Kf3 {[%emt 0:00:00]} Bf6 {[%emt 0:00:35]} 59. Bc1 {[%emt 0:00:00]} Be5 {[%emt 0:00:17]} 60. Bg5 {[%emt 0:00:00]} Nh7 {[%emt 0:00:10]} 61. Bh4 {[%emt 0:00:00]} Nf6 {[%emt 0:00:33]} 62. Ke3 {[%emt 0:00:00]} Ng4+ {[%emt 0:00:16]} 63. Kf3 {[%emt 0:00:00]} Nh6 {[%emt 0:00:05] Weighted Error Value: White=0.49/Black=0.06 (flawless)} 0-1

[Event "15th Arad Open 2022"]
[Site "Arad"]
[Date "2022.08.10"]
[Round "4.2"]
[White "Ramoutar, Alan-Safar"]
[Black "Magold, Filip"]
[Result "1-0"]
[ECO "B10"]
[WhiteElo "2453"]
[BlackElo "2247"]
[Annotator "TA"]
[PlyCount "57"]
[EventDate "2022.08.08"]
[EventType "swiss"]
[EventCountry "ROU"]
[SourceTitle "playchess.com"]
[Source "ChessBase"]
[SourceQuality "1"]
[TimeControl "5400+30"]

{[%evp 9,57,0,0,0,9,5,8,14,10,8,11,11,11,9,10,11,8,0,25,13,33,27,54,79,77,73,130,115,149,127,140,149,177,171,139,116,128,53,86,48,500,492,502,500,536,501,856,845,29991,29992]} 1. e4 {[%emt 0:00:04]} c6 {[%emt 0:00:24]} 2. Nf3 {[%emt 0:00:20]} d5 {[%emt 0:00:07]} 3. exd5 {[%emt 0:00:16]} cxd5 {[%emt 0:00:07]} 4. Ne5 {[%emt 0:00:08]} e6 {[%emt 0:00:27]} 5. d4 {[%emt 0:00:41]} Nc6 {[%emt 0:00:11]} 6. Bb5 {[%emt 0:00:37] B10: Caro-Kann: 2 d3 and 2 c4.} Bd7 {[%emt 0:00:13]} 7. Nxd7 {[%emt 0:00:28]} Qxd7 {[%emt 0:00:02]} 8. c3 {[%emt 0:00:17] The position is equal.} Nf6 {[%emt 0:01:20]} 9. O-O {[%emt 0:01:00]} Bd6 {[%emt 0:00:32]} 10. Nd2 {[%emt 0:01:06]} O-O {[%emt 0:00:56]} 11. Re1 {[%emt 0:06:01]} Qc7 {[%emt 0:04:22]} (11... Rae8 {looks sharper.} 12. Nf3 Ne4 13. Ng5 Nf6) 12. g3 {[%emt 0:06:16]} a6 {[%emt 0:08:14]} 13. Bd3 {[%emt 0:01:08]} b5 {[%emt 0:01:03]} 14. Nf3 {[%emt 0:04:13]} b4 {[%emt 0:03:11]} 15. Bg5 {[%emt 0:06:19] [#]} Nd7 $146 {[%emt 0:04:39]} ({Predecessor:} 15... bxc3 16. Bxf6 gxf6 17. bxc3 Ne7 18. Qd2 Kg7 19. Rac1 Rfc8 20. c4 dxc4 21. Rxc4 Qb6 22. Rxc8 Rxc8 {0-1 (47) Abdurakhmanov,M (2284)-Gajewski,G (2618) Chess.com INT 2020}) 16. c4 {[%emt 0:09:53]} dxc4 {[%emt 0:01:50]} 17. Bxc4 {[%emt 0:00:15] This bishop pair is nice.} Na5 {[%emt 0:05:02]} (17... h6 $142) 18. Bd3 $16 {[%emt 0:02:20]} Nb6 {[%emt 0:03:29]} 19. Qe2 {[%emt 0:06:53]} Qb7 {[%emt 0:09:11]} 20. Rac1 {[%emt 0:02:30]} Rfc8 {[%emt 0:08:10]} 21. Rxc8+ $40 {[%emt 0:02:37][%mdl 128] White has strong attack.} Qxc8 {[%emt 0:00:09]} 22. Qe4 {[%emt 0:03:03]} g6 {[%emt 0:00:10]} 23. Qh4 {[%emt 0:07:19] White is more active.} ({Better is} 23. h4 $16) 23... Nd5 {[%emt 0:07:17]} 24. Be4 {[%emt 0:04:42]} Ra7 $2 {[%emt 0:06:22][%mdl 8192] This costs Black the game.} (24... Nc6 $1 $14) 25. Bxd5 $18 {[%emt 0:02:10]} exd5 {[%emt 0:00:02]} 26. Bd8 {[%emt 0:02:55][%cal Bg5d8,Bd8a5,Ba5b4][%mdl 32] [#] Re8+ would kill now.} Qf5 {[%emt 0:03:13]} 27. Bxa5 {[%emt 0:05:28]} Qxf3 {[%emt 0:07:19]} (27... f6 $142 28. Re8+ Kg7) 28. Qd8+ {[%emt 0:00:25]} Bf8 {[%emt 0:00:10]} 29. Bxb4 {[%emt 0:00:23] Weighted Error Value: White=0.09 (flawless) /Black=0.75} 1-0